fUST/lending_fUST_20250325
["ID","MTS","AMOUNT","RATE_DAILY","PERIOD"]
[356634622,1742866243752,-1114.16,0.00013698,2]
[356634623,1742866243761,-500.0,0.00013698,2]
[356634624,1742866243771,-500.0,0.00013698,2]
[356634625,1742866243781,-1872.78,0.00013698,2]
[356634626,1742866243790,-500.0,0.00013698,2]
[356634627,1742866243799,-500.0,0.00013698,2]
[356634628,1742866243809,-500.0,0.00013698,2]
[356634629,1742866243819,-500.0,0.00013698,2]
[356634630,1742866243828,-2728.13,0.00013698,2]
[356634631,1742866243837,-1243.93,0.00013698,2]
[356634632,1742866243849,-958.93,0.00013698,2]
[356634633,1742866243859,-29.10617069,0.00013698,2]
[356634635,1742866246511,-386.17505354,0.00013698,2]
[356634637,1742866246606,-84.71877577,0.00013698,2]
[356634638,1742866246616,-376.17256,0.00013699,2]
[356634639,1742866246625,-500.0,0.00013699,2]
[356634640,1742866246634,-500.0,0.00013699,2]
[356634641,1742866246643,-500.0,0.00013699,2]
[356634642,1742866246651,-500.0,0.00013699,2]
[356634643,1742866246660,-500.0,0.00013699,2]
[356634644,1742866246669,-25.60866421,0.00013699,2]
[356634646,1742867142808,384.0,0.0002,120]
[356634671,1742867432634,-195.2077855,0.0001259,2]
[356634673,1742867432645,-252.8097305,0.00013288,2]
[356634675,1742867432658,-336.32876455,0.00013352,2]
[356634678,1742867432669,-2549.33417116,0.00013352,2]
[356634680,1742867432679,-165.5739517,0.00013379,2]
[356634682,1742867432690,-300.0,0.00013397,2]
[356634684,1742867432700,-242.02729708,0.00013397,2]
[356634686,1742867432709,-502.20724045,0.00013397,2]
[356634688,1742867432719,-436.58902467,0.00013397,2]
[356634690,1742867432729,-78756.72041597,0.00013398,2]
[356634692,1742867432738,-165.57395167,0.00013452,2]
[356634694,1742867432748,-336.32876454,0.00013475,2]
[356634696,1742867432758,-165.57395167,0.00013525,2]
[356634697,1742867432767,-250.0,0.0001358,2]
[356634698,1742867432777,-160.0,0.00013588,2]
[356634699,1742867432787,-418.2974228,0.00013588,2]
[356634700,1742867432796,-834.65560377,0.00013588,2]
[356634701,1742867432806,-165.57395167,0.00013598,2]
[356634702,1742867432816,-336.32876454,0.00013598,2]
[356634703,1742867432826,-1000.0,0.000136,2]
[356634704,1742867432836,-1000.0,0.000136,3]
[356634705,1742867432845,-500.0,0.00013673,2]
[356634706,1742867432855,-503.31509735,0.00013673,2]
[356634707,1742867432865,-198.73815515,0.0001369,2]
[356634708,1742867432875,-600.0,0.0001369,2]
[356634709,1742867432884,-12458.93820146,0.00013697,2]
[356634710,1742867432894,-160.0,0.00013697,2]
[356634711,1742867432904,-205.95726651,0.00013698,2]
[356634712,1742867432913,-282.94911892,0.00013698,2]
[356634713,1742867432923,-445.11688691,0.00013698,2]
[356634714,1742867432932,-500.0,0.00013698,2]
[356634715,1742867432942,-500.0,0.00013698,2]
[356634716,1742867432951,-500.0,0.00013698,2]
[356634717,1742867432961,-500.0,0.00013698,2]
[356634718,1742867432971,-500.0,0.00013698,2]
[356634719,1742867432980,-500.0,0.00013698,2]
[356634720,1742867432989,-500.0,0.00013698,2]
[356634721,1742867432999,-500.0,0.00013698,2]
[356634722,1742867433009,-500.0,0.00013698,2]
[356634723,1742867433019,-500.0,0.00013698,2]
[356634724,1742867433029,-500.0,0.00013698,2]
[356634725,1742867433039,-500.0,0.00013698,2]
[356634726,1742867433049,-500.0,0.00013698,2]
[356634727,1742867433059,-500.0,0.00013698,2]
[356634728,1742867433069,-500.0,0.00013698,2]
[356634729,1742867433078,-520.18732443,0.00013698,2]
[356634730,1742867433087,-500.0,0.00013698,2]
[356634731,1742867433097,-500.0,0.00013698,2]
[356634732,1742867433107,-918.97,0.00013698,2]
[356634733,1742867433117,-859.25,0.00013698,2]
[356634734,1742867433127,-500.0,0.00013698,2]
[356634735,1742867433137,-500.0,0.00013698,2]
[356634736,1742867433147,-500.0,0.00013698,2]
[356634737,1742867433160,-500.0,0.00013698,2]
[356634738,1742867433170,-500.0,0.00013698,2]
[356634739,1742867433180,-514.0106217,0.00013698,2]
[356634740,1742867433190,-520.71191303,0.00013698,2]
[356634741,1742867433204,-500.0,0.00013698,2]
[356634742,1742867433214,-500.0,0.00013698,2]
[356634743,1742867433224,-500.0,0.00013698,2]
[356634744,1742867433234,-561.99,0.00013698,2]
[356634745,1742867433244,-500.0,0.00013698,2]
[356634746,1742867433254,-500.0,0.00013698,2]
[356634747,1742867433264,-672.1,0.00013698,2]
[356634748,1742867433274,-500.0,0.00013698,2]
[356634749,1742867433284,-500.0,0.00013698,2]
[356634750,1742867433294,-516.25383624,0.00013698,2]
[356634751,1742867433305,-500.0,0.00013698,2]
[356634752,1742867433315,-573.75178754,0.00013698,2]
[356634753,1742867433325,-500.0,0.00013698,2]
[356634754,1742867433335,-500.0,0.00013698,2]
[356634755,1742867433346,-2747.92,0.00013698,2]
[356634756,1742867433356,-500.0,0.00013698,2]
[356634757,1742867433367,-500.0,0.00013698,2]
[356634758,1742867433377,-500.0,0.00013698,2]
[356634759,1742867433597,-500.0,0.00013698,2]
[356634760,1742867433608,-500.0,0.00013698,2]
[356634761,1742867433619,-187.77393907,0.00013698,2]
[356634762,1742867433629,-1017.28,0.00013698,2]
[356634763,1742867433639,-776.38,0.00013698,2]
[356634764,1742867433652,-500.0,0.00013698,2]
[356634765,1742867433662,-500.0,0.00013698,2]
[356634766,1742867433672,-834.23,0.00013698,2]
[356634767,1742867433681,-500.0,0.00013698,2]
[356634768,1742867433692,-500.0,0.00013698,2]
[356634769,1742867433701,-500.0,0.00013698,2]
[356634770,1742867433710,-500.0,0.00013698,2]
[356634771,1742867433720,-500.0,0.00013698,2]
[356634772,1742867433730,-427.1620858,0.00013698,2]
[356634773,1742867433741,-500.0,0.00013698,2]
[356634774,1742867433750,-500.0,0.00013698,2]
[356634775,1742867433760,-500.0,0.00013698,2]
[356634776,1742867433770,-500.0,0.00013698,2]
[356634777,1742867433780,-500.0,0.00013698,2]
[356634778,1742867433790,-204.00769144,0.00013698,2]
[356634779,1742867433800,-500.0,0.00013698,2]
[356634780,1742867433809,-500.0,0.00013698,2]
[356634781,1742867433820,-500.0,0.00013698,2]
[356634782,1742867433830,-554.61,0.00013698,2]
[356634783,1742867433839,-362.24348229,0.00013698,2]
[356634784,1742867433849,-500.0,0.00013698,2]
[356634785,1742867433858,-500.0,0.00013698,2]
[356634786,1742867433868,-511.03606,0.00013698,2]
[356634787,1742867433877,-500.0,0.00013698,2]
[356634788,1742867433887,-522.96267146,0.00013698,2]
[356634789,1742867433897,-511.9534951,0.00013698,2]
[356634790,1742867433906,-500.0,0.00013698,2]
[356634791,1742867433916,-500.0,0.00013698,2]
[356634792,1742867433926,-500.0,0.00013698,2]
[356634793,1742867433935,-500.0,0.00013698,2]
[356634794,1742867433945,-512.90451984,0.00013698,2]
[356634795,1742867433955,-527.10004595,0.00013698,2]
[356634796,1742867433964,-500.0,0.00013698,2]
[356634797,1742867433974,-515.4765886,0.00013698,2]
[356634798,1742867433984,-600.51,0.00013698,2]
[356634799,1742867433993,-713.13,0.00013698,2]
[356634800,1742867434003,-500.0,0.00013698,2]
[356634801,1742867434013,-500.0,0.00013698,2]
[356634802,1742867434023,-719.55,0.00013698,2]
[356634803,1742867434032,-500.0,0.00013698,2]
[356634804,1742867434042,-619.02659304,0.00013698,2]
[356634805,1742867434052,-531.19,0.00013698,2]
[356634806,1742867434062,-487.10801683,0.00013698,2]
[356634807,1742867434072,-500.0,0.00013698,2]
[356634808,1742867434082,-500.0,0.00013698,2]
[356634809,1742867434092,-500.0,0.00013698,2]
[356634810,1742867434102,-544.23,0.00013698,2]
[356634811,1742867434112,-500.0,0.00013698,2]
[356634812,1742867434123,-500.0,0.00013698,2]
[356634813,1742867434132,-500.0,0.00013698,2]
[356634814,1742867434142,-500.0,0.00013698,2]
[356634815,1742867434153,-1794.75,0.00013698,2]
[356634816,1742867434163,-2913.3,0.00013698,2]
[356634817,1742867434172,-500.0,0.00013698,2]
[356634818,1742867434181,-1192.1,0.00013698,2]
[356634819,1742867434191,-500.0,0.00013698,2]
[356634820,1742867434200,-511.78876637,0.00013698,2]
[356634821,1742867434210,-500.0,0.00013698,2]
[356634822,1742867434220,-500.0,0.00013698,2]
[356634823,1742867434230,-1744.47,0.00013698,2]
[356634824,1742867434239,-500.0,0.00013698,2]
[356634825,1742867434250,-838.26,0.00013698,2]
[356634826,1742867434260,-1067.74,0.00013698,2]
[356634827,1742867434270,-501.97,0.00013698,2]
[356634828,1742867434279,-500.0,0.00013698,2]
[356634829,1742867434288,-500.0,0.00013698,2]
[356634830,1742867434297,-513.03918807,0.00013698,2]
[356634831,1742867434307,-4152.82,0.00013698,2]
[356634832,1742867434318,-500.0,0.00013698,2]
[356634833,1742867434327,-1957.02,0.00013698,2]
[356634834,1742867434336,-500.0,0.00013698,2]
[356634835,1742867434345,-1448.09,0.00013698,2]
[356634836,1742867434355,-1013.31,0.00013698,2]
[356634837,1742867434365,-500.0,0.00013698,2]
[356634838,1742867434374,-500.0,0.00013698,2]
[356634839,1742867434384,-558.15301227,0.00013698,2]
[356634840,1742867434393,-1500.93,0.00013698,2]
[356634841,1742867434403,-500.0,0.00013698,2]
[356634842,1742867434412,-500.0,0.00013698,2]
[356634843,1742867434421,-2308.85,0.00013698,2]
[356634844,1742867434430,-500.0,0.00013698,2]
[356634845,1742867434440,-579.16415886,0.00013698,2]
[356634846,1742867434450,-499.95128953,0.00013698,2]
[356634847,1742867434459,-500.0,0.00013698,2]
[356634848,1742867434468,-739.24,0.00013698,2]
[356634849,1742867434477,-500.0,0.00013698,2]
[356634850,1742867434493,-898.2,0.00013698,2]
[356634851,1742867434507,-524.36704327,0.00013698,2]
[356634852,1742867434517,-500.0,0.00013698,2]
[356634853,1742867434527,-500.0,0.00013698,2]
[356634854,1742867434537,-500.0,0.00013698,2]
[356634855,1742867434547,-547.31,0.00013698,2]
[356634856,1742867434557,-867.05,0.00013698,2]
[356634857,1742867434568,-500.0,0.00013698,2]
[356634858,1742867434577,-500.0,0.00013698,2]
[356634859,1742867434587,-2347.18887938,0.00013698,2]
[356634881,1742867443622,-160.0,0.00013697,2]
[356634882,1742867443632,-1840.0,0.00013698,2]
[356634883,1742867443644,-1364.73112062,0.00013698,2]
[356634884,1742867443653,-515.79,0.00013698,2]
[356634885,1742867443663,-500.0,0.00013698,2]
[356634886,1742867443676,-6395.32973964,0.00013698,2]
[356634912,1742867533749,183.1363528,0.00010959,2]
[356634935,1742868632777,-749.72336791,0.00012986,2]
[356634936,1742868632883,-1828.80395829,0.00012986,2]
[356634937,1742868632893,-179.02920056,0.00012999,2]
[356634938,1742868632902,-457.69094672,0.00012999,2]
[356634939,1742868632911,-300.0,0.00012999,2]
[356634940,1742868632920,-36874.97812903,0.00013,2]
[356634941,1742868632929,-230.87450073,0.00013086,2]
[356634942,1742868632939,-230.87450073,0.0001319,2]
[356634943,1742868632948,-2059.0,0.00013287,2]
[356634944,1742868632957,-230.87450073,0.00013293,2]
[356634945,1742868632966,-230.87450073,0.00013397,2]
[356634946,1742868632975,-5000.0,0.00013498,2]
[356634947,1742868632985,-230.87450073,0.000135,2]
[356634948,1742868632994,-238466.94952715,0.00013598,2]
[356634949,1742868633005,-32987.7790125,0.00013598,2]
[356634960,1742868638529,-3357.811521,0.00013598,2]
[356634961,1742868638587,-47187.45993935,0.00013598,2]
[356634962,1742868638597,-300.0,0.000136,4]
[356634963,1742868638607,-501.90473557,0.00013673,2]
[356634965,1742868638616,-500.0,0.00013673,2]
[356634966,1742868638626,-500.0,0.00013673,2]
[356634967,1742868638637,-500.0,0.00013673,2]
[356634968,1742868638646,-500.0,0.00013673,2]
[356634969,1742868638656,-500.0,0.00013673,2]
[356634970,1742868638665,-500.0,0.00013673,2]
[356634971,1742868638675,-500.0,0.00013673,2]
[356634972,1742868638684,-500.0,0.00013673,2]
[356634973,1742868638693,-153.28489234,0.0001369,2]
[356634974,1742868638703,-600.0,0.0001369,2]
[356634975,1742868638712,-160.0,0.00013694,2]
[356634976,1742868638722,-160.0,0.00013695,2]
[356634977,1742868638731,-418.2974228,0.00013695,2]
[356634978,1742868638740,-834.65560377,0.00013695,2]
[356634979,1742868638749,-160.0,0.00013695,2]
[356634980,1742868638759,-5840.26471162,0.00013695,2]
[356634981,1742868638768,-282.94911891,0.00013698,2]
[356634982,1742868638777,-511.1613552,0.00013698,2]
[356634983,1742868638787,-502.9987662,0.00013698,2]
[356634984,1742868638796,-500.0,0.00013698,2]
[356634985,1742868638806,-243.03029521,0.00013698,2]
[356634986,1742868638815,-522.32227435,0.00013698,2]
[356634987,1742868638825,-511.38802049,0.00013698,2]
[356634988,1742868638834,-508.79129721,0.00013698,2]
[356634989,1742868638843,-511.44526076,0.00013698,2]
[356634990,1742868638852,-500.0,0.00013698,2]
[356634991,1742868638861,-515.2798698,0.00013698,2]
[356634992,1742868638871,-500.0,0.00013698,2]
[356634993,1742868638880,-592.36513377,0.00013698,2]
[356634994,1742868638890,-500.0,0.00013698,2]
[356634995,1742868638899,-512.93280894,0.00013698,2]
[356634996,1742868639039,-516.6323666,0.00013698,2]
[356634997,1742868639049,-500.0,0.00013698,2]
[356634998,1742868639059,-513.8477865,0.00013698,2]
[356634999,1742868639069,-509.05082531,0.00013698,2]
[356635000,1742868639078,-507.87618842,0.00013698,2]
[356635001,1742868639087,-500.0,0.00013698,2]
[356635002,1742868639097,-517.10079789,0.00013698,2]
[356635003,1742868639107,-513.04691267,0.00013698,2]
[356635004,1742868639116,-519.98352469,0.00013698,2]
[356635005,1742868639125,-517.45992077,0.00013698,2]
[356635006,1742868639135,-513.56127185,0.00013698,2]
[356635007,1742868639144,-500.0,0.00013698,2]
[356635008,1742868639157,-500.0,0.00013698,2]
[356635009,1742868639166,-513.11741279,0.00013698,2]
[356635010,1742868639175,-519.10846465,0.00013698,2]
[356635011,1742868639184,-516.36901913,0.00013698,2]
[356635012,1742868639195,-587.13,0.00013698,2]
[356635013,1742868639204,-516.27121741,0.00013698,2]
[356635014,1742868639214,-511.49633373,0.00013698,2]
[356635015,1742868639223,-500.0,0.00013698,2]
[356635016,1742868639233,-500.0,0.00013698,2]
[356635017,1742868639242,-500.0,0.00013698,2]
[356635018,1742868639252,-514.78053728,0.00013698,2]
[356635019,1742868639262,-500.0,0.00013698,2]
[356635020,1742868639271,-500.0,0.00013698,2]
[356635021,1742868639280,-510.69200888,0.00013698,2]
[356635022,1742868639290,-511.53536154,0.00013698,2]
[356635023,1742868639299,-500.0,0.00013698,2]
[356635024,1742868639308,-500.0,0.00013698,2]
[356635025,1742868639318,-501.19636265,0.00013698,2]
[356635026,1742868639327,-500.0,0.00013698,2]
[356635027,1742868639336,-638.34,0.00013698,2]
[356635028,1742868639345,-500.0,0.00013698,2]
[356635029,1742868639354,-936.31,0.00013698,2]
[356635030,1742868639363,-500.0,0.00013698,2]
[356635031,1742868639373,-505.32567685,0.00013698,2]
[356635032,1742868639381,-620.60623212,0.00013698,2]
[356635033,1742868639391,-500.0,0.00013698,2]
[356635034,1742868639400,-500.0,0.00013698,2]
[356635035,1742868639409,-500.0,0.00013698,2]
[356635036,1742868639418,-500.0,0.00013698,2]
[356635037,1742868639427,-500.0,0.00013698,2]
[356635038,1742868639437,-631.24300145,0.00013698,2]
[356635039,1742868639446,-572.75221694,0.00013698,2]
[356635040,1742868639455,-516.0784872,0.00013698,2]
[356635041,1742868639464,-542.11820894,0.00013698,2]
[356635042,1742868639473,-500.0,0.00013698,2]
[356635043,1742868639483,-514.30219935,0.00013698,2]
[356635044,1742868639491,-500.0,0.00013698,2]
[356635045,1742868639501,-500.0,0.00013698,2]
[356635046,1742868639510,-488.80566967,0.00013698,2]
[356635047,1742868639519,-500.0,0.00013698,2]
[356635048,1742868639528,-500.0,0.00013698,2]
[356635049,1742868639538,-509.14086907,0.00013698,2]
[356635050,1742868639547,-500.0,0.00013698,2]
[356635051,1742868639557,-500.0,0.00013698,2]
[356635052,1742868639566,-500.0,0.00013698,2]
[356635053,1742868639575,-611.27,0.00013698,2]
[356635054,1742868639585,-511.50646863,0.00013698,2]
[356635055,1742868639594,-500.0,0.00013698,2]
[356635056,1742868639603,-818.43,0.00013698,2]
[356635057,1742868639612,-500.0,0.00013698,2]
[356635058,1742868639622,-500.0,0.00013698,2]
[356635059,1742868639631,-500.0,0.00013698,2]
[356635060,1742868639640,-500.0,0.00013698,2]
[356635061,1742868639650,-510.02387033,0.00013698,2]
[356635062,1742868639659,-500.0,0.00013698,2]
[356635063,1742868639668,-500.0,0.00013698,2]
[356635064,1742868639678,-500.0,0.00013698,2]
[356635065,1742868639687,-2922.17,0.00013698,2]
[356635066,1742868639696,-500.0,0.00013698,2]
[356635067,1742868639706,-500.0,0.00013698,2]
[356635068,1742868639715,-500.0,0.00013698,2]
[356635069,1742868639725,-518.30563222,0.00013698,2]
[356635070,1742868639736,-500.0,0.00013698,2]
[356635071,1742868639746,-1120.87,0.00013698,2]
[356635072,1742868639755,-595.71477044,0.00013698,2]
[356635073,1742868639764,-744.03,0.00013698,2]
[356635074,1742868639773,-500.0,0.00013698,2]
[356635075,1742868639782,-500.0,0.00013698,2]
[356635076,1742868639791,-500.0,0.00013698,2]
[356635077,1742868639801,-799.47,0.00013698,2]
[356635078,1742868639811,-500.0,0.00013698,2]
[356635079,1742868639820,-416.41875829,0.00013698,2]
[356635080,1742868639829,-500.0,0.00013698,2]
[356635081,1742868639838,-500.0,0.00013698,2]
[356635082,1742868639847,-500.0,0.00013698,2]
[356635083,1742868639856,-500.0,0.00013698,2]
[356635084,1742868639865,-500.0,0.00013698,2]
[356635085,1742868639874,-500.0,0.00013698,2]
[356635086,1742868639884,-500.0,0.00013698,2]
[356635087,1742868639893,-500.0,0.00013698,2]
[356635088,1742868639903,-500.0,0.00013698,2]
[356635089,1742868639912,-500.0,0.00013698,2]
[356635090,1742868639922,-500.0,0.00013698,2]
[356635091,1742868639931,-500.0,0.00013698,2]
[356635092,1742868639941,-500.0,0.00013698,2]
[356635093,1742868639951,-500.0,0.00013698,2]
[356635094,1742868639960,-500.0,0.00013698,2]
[356635095,1742868639969,-500.0,0.00013698,2]
[356635096,1742868639979,-500.0,0.00013698,2]
[356635097,1742868639989,-500.0,0.00013698,2]
[356635098,1742868639998,-214.52124974,0.00013698,2]
[356635099,1742868640010,-500.0,0.00013698,2]
[356635100,1742868640020,-584.50851692,0.00013698,2]
[356635101,1742868640029,-500.0,0.00013698,2]
[356635102,1742868640039,-513.78795608,0.00013698,2]
[356635103,1742868640049,-513.36298731,0.00013698,2]
[356635104,1742868640058,-506.15661728,0.00013698,2]
[356635105,1742868640067,-507.95741228,0.00013698,2]
[356635106,1742868640076,-500.0,0.00013698,2]
[356635107,1742868640085,-512.63951222,0.00013698,2]
[356635108,1742868640094,-5536.43,0.00013698,2]
[356635109,1742868640103,-683.42,0.00013698,2]
[356635110,1742868640112,-575.48,0.00013698,2]
[356635111,1742868640126,-514.23261339,0.00013698,2]
[356635112,1742868640141,-500.0,0.00013698,2]
[356635113,1742868640157,-505.69602013,0.00013698,2]
[356635114,1742868640170,-689.57,0.00013698,2]
[356635116,1742868640182,-500.0,0.00013698,2]
[356635118,1742868640196,-500.0,0.00013698,2]
[356635120,1742868640208,-514.45750505,0.00013698,2]
[356635121,1742868640222,-509.06,0.00013698,2]
[356635122,1742868640238,-500.0,0.00013698,2]
[356635124,1742868640251,-521.55,0.00013698,2]
[356635125,1742868640264,-516.51170181,0.00013698,2]
[356635126,1742868640278,-500.0,0.00013698,2]
[356635127,1742868640290,-506.90721614,0.00013698,2]
[356635128,1742868640302,-500.0,0.00013698,2]
[356635129,1742868640314,-507.90098458,0.00013698,2]
[356635130,1742868640326,-1142.43,0.00013698,2]
[356635131,1742868640340,-500.0,0.00013698,2]
[356635132,1742868640353,-1671.78,0.00013698,2]
[356635133,1742868640366,-500.0,0.00013698,2]
[356635134,1742868640377,-511.54166112,0.00013698,2]
[356635135,1742868640390,-500.0,0.00013698,2]
[356635136,1742868640402,-512.96969015,0.00013698,2]
[356635137,1742868640414,-500.0,0.00013698,2]
[356635138,1742868640428,-859.59,0.00013698,2]
[356635139,1742868640441,-500.0,0.00013698,2]
[356635140,1742868640454,-255.92914,0.00013698,2]
[356635141,1742868640468,-803.33,0.00013698,2]
[356635142,1742868640481,-255.92914,0.00013698,2]
[356635143,1742868640495,-500.0,0.00013698,2]
[356635144,1742868640506,-528.88,0.00013698,2]
[356635145,1742868640516,-255.92914,0.00013698,2]
[356635147,1742868640526,-255.92914,0.00013698,2]
[356635149,1742868640537,-1727.02,0.00013698,2]
[356635150,1742868640551,-507.13144069,0.00013698,2]
[356635151,1742868640564,-3979.79,0.00013698,2]
[356635152,1742868640575,-510.18168822,0.00013698,2]
[356635153,1742868640586,-500.0,0.00013698,2]
[356635154,1742868640597,-510.26734323,0.00013698,2]
[356635155,1742868640610,-500.0,0.00013698,2]
[356635156,1742868640621,-241.01459489,0.00013698,2]
[356635158,1742868640632,-508.91438495,0.00013698,2]
[356635160,1742868640643,-1387.75,0.00013698,2]
[356635162,1742868640653,-505.11328979,0.00013698,2]
[356635164,1742868640664,-510.41783986,0.00013698,2]
[356635166,1742868640675,-506.5651528,0.00013698,2]
[356635169,1742868640686,-500.0,0.00013698,2]
[356635171,1742868640697,-500.0,0.00013698,2]
[356635173,1742868640708,-500.0,0.00013698,2]
[356635175,1742868640721,-500.0,0.00013698,2]
[356635177,1742868640731,-513.91092989,0.00013698,2]
[356635180,1742868640742,-500.0,0.00013698,2]
[356635182,1742868640753,-509.44241685,0.00013698,2]
[356635184,1742868640764,-1438.39,0.00013698,2]
[356635186,1742868640774,-1067.89,0.00013698,2]
[356635189,1742868640785,-500.0,0.00013698,2]
[356635191,1742868640796,-500.0,0.00013698,2]
[356635193,1742868640807,-934.86,0.00013698,2]
[356635195,1742868640818,-500.0,0.00013698,2]
[356635197,1742868640829,-500.0,0.00013698,2]
[356635200,1742868640840,-3777.06,0.00013698,2]
[356635202,1742868640850,-708.44,0.00013698,2]
[356635204,1742868640861,-500.0,0.00013698,2]
[356635206,1742868640872,-537.29,0.00013698,2]
[356635208,1742868640883,-278.50689875,0.00013698,2]
[356635210,1742868640894,-501.30585462,0.00013698,2]
[356635213,1742868640905,-524.5,0.00013698,2]
[356635215,1742868640917,-511.73806421,0.00013698,2]
[356635217,1742868640927,-7733.94164747,0.00013698,2]
[356635225,1742868640985,-98742.04835253,0.00013698,2]
[356635227,1742868640997,-860.78,0.00013698,2]
[356635229,1742868641008,-500.0,0.00013698,2]
[356635231,1742868641019,-500.0,0.00013698,2]
[356635234,1742868641030,-5320.59,0.00013698,2]
[356635236,1742868641041,-500.0,0.00013698,2]
[356635238,1742868641052,-500.0,0.00013698,2]
[356635240,1742868641064,-1699.81,0.00013698,2]
[356635243,1742868641075,-500.0,0.00013698,2]
[356635245,1742868641086,-500.0,0.00013698,2]
[356635247,1742868641099,-500.0,0.00013698,2]
[356635249,1742868641110,-500.0,0.00013698,2]
[356635251,1742868641121,-1458.6,0.00013698,2]
[356635254,1742868641133,-500.0,0.00013698,2]
[356635256,1742868641145,-500.0,0.00013698,2]
[356635258,1742868641159,-10119.19,0.00013698,2]
[356635260,1742868641170,-500.0,0.00013698,2]
[356635263,1742868641181,-509.95221788,0.00013698,2]
[356635266,1742868641195,-500.0,0.00013698,2]
[356635269,1742868641206,-500.0,0.00013698,2]
[356635271,1742868641218,-500.0,0.00013698,2]
[356635274,1742868641232,-500.0,0.00013698,2]
[356635276,1742868641243,-500.0,0.00013698,2]
[356635278,1742868641255,-1254.8,0.00013698,2]
[356635280,1742868641268,-513.79555425,0.00013698,2]
[356635283,1742868641279,-541.07,0.00013698,2]
[356635285,1742868641291,-500.0,0.00013698,2]
[356635287,1742868641302,-1138.14,0.00013698,2]
[356635289,1742868641314,-508.78826879,0.00013698,2]
[356635291,1742868641326,-3830.65,0.00013698,2]
[356635293,1742868641338,-500.0,0.00013698,2]
[356635296,1742868641350,-2915.95,0.00013698,2]
[356635298,1742868641359,-599.63872648,0.00013698,2]
[356635300,1742868641369,-500.0,0.00013698,2]
[356635302,1742868641378,-513.20750515,0.00013698,2]
[356635304,1742868641388,-500.0,0.00013698,2]
[356635306,1742868641398,-2362.95,0.00013698,2]
[356635327,1742868641587,-500.0,0.00013698,2]
[356635330,1742868641606,-516.7948409,0.00013698,2]
[356635332,1742868641616,-506.38411384,0.00013698,2]
[356635334,1742868641625,-500.0,0.00013698,2]
[356635336,1742868641634,-513.23585187,0.00013698,2]
[356635338,1742868641643,-500.0,0.00013698,2]
[356635340,1742868641652,-923.88,0.00013698,2]
[356635342,1742868641661,-2682.49,0.00013698,2]
[356635344,1742868641671,-104.20842934,0.00013698,2]
[356635537,1742868703603,175.27183,0.00010959,2]
[356635565,1742869574907,205.62,0.00010959,2]
[356635569,1742869704203,150.0,0.0001202,10]
[356635612,1742869836051,-2661.05924091,0.00013,2]
[356635613,1742869836062,-1198.8625739,0.00013288,2]
[356635614,1742869836073,-151.452,0.000134,2]
[356635615,1742869836083,-2256.21141039,0.00013458,2]
[356635616,1742869836092,-222.4895275,0.00013497,3]
[356635617,1742869836102,-300.0,0.00013497,2]
[356635618,1742869836111,-452.2781141,0.00013497,3]
[356635619,1742869836121,-320.38366271,0.00013497,2]
[356635620,1742869836133,-322000.0,0.00013498,2]
[356635621,1742869836144,-591.3490864,0.000136,2]
[356635622,1742869836154,-834.75273087,0.00013616,2]
[356635623,1742869836164,-160.0,0.00013616,2]
[356635624,1742869836174,-160.0,0.00013616,2]